bitfinex-derivatives/quotes_SOLF0:USTF0_20260204
["timestamp","ask_amount","ask_price","bid_price","bid_amount"]
[1770228769784,38.58122657,90.978,90.862,35.50194174]
[1770228770281,48.49352657,90.978,90.882,35.50194174]
[1770228770486,38.58122657,91.002,90.882,35.50194174]
[1770228770984,9.9115,90.986,90.886,35.50194174]
[1770228771185,38.58122657,90.985,90.886,35.50194174]
[1770228771384,38.58122657,91.012,90.886,35.50194174]
[1770228771585,9.912,90.981,90.886,35.50194174]
[1770228771779,48.49322657,90.981,90.886,35.50194174]
[1770228772188,38.58122657,90.981,90.888,35.50194174]
[1770228772388,9.9104,90.996,90.888,35.50194174]
[1770228772888,38.58122657,91.007,90.911,35.50194174]
[1770228774183,35.7859961,90.989,90.871,36.64210224]
[1770228774586,35.7859961,90.989,90.913,9.9194]
[1770228774784,35.7859961,90.989,90.907,36.64210224]
[1770228775186,35.7859961,90.972,90.88,36.64210224]
[1770228775689,35.7859961,90.966,90.88,36.64210224]
[1770228776081,35.7859961,90.966,90.856,36.64210224]
[1770228776283,35.7859961,90.96,90.856,36.64210224]
[1770228776682,45.7002961,90.96,90.869,9.9242]
[1770228776893,35.7859961,90.96,90.856,36.64210224]
[1770228777291,35.7859961,90.958,90.868,9.9242]
[1770228777791,35.7859961,90.958,90.856,36.64210224]
[1770228778090,9.9154,90.95,90.859,36.64210224]
[1770228778292,35.7859961,90.949,90.859,36.64210224]
[1770228778894,47.57615274,90.944,90.859,46.56740224]
[1770228779095,37.66015274,90.944,90.86,38.43772022]
[1770228779993,37.66015274,90.944,90.871,9.9239]
[1770228780495,37.66015274,90.967,90.872,38.43772022]
[1770228780695,9.9138,90.965,90.885,9.9224]
[1770228780994,37.66015274,90.964,90.872,38.43772022]
[1770228781192,37.66015274,90.941,90.821,38.43772022]
[1770228781895,37.66015274,90.941,90.843,38.43772022]
[1770228782394,9.9183,90.923,90.856,38.43772022]
[1770228782595,37.66015274,90.941,90.856,38.43772022]
[1770228783494,37.66015274,90.941,90.821,38.43772022]
[1770228783694,37.66015274,90.939,90.821,38.43772022]
[1770228783893,9.9214,90.895,90.823,48.36692022]
[1770228784192,37.66015274,90.912,90.824,38.43772022]
[1770228784593,37.66015274,90.912,90.831,38.43772022]
[1770228784790,37.66015274,90.937,90.831,38.43772022]
[1770228784987,37.66015274,90.929,90.831,38.43772022]
[1770228785797,37.66015274,90.909,90.831,38.43772022]
[1770228786095,37.66015274,90.886,90.807,38.43772022]
[1770228786490,37.66015274,90.909,90.82,38.43772022]
[1770228786693,37.66015274,90.93,90.83,7.56048308]
[1770228786891,37.66015274,90.93,90.831,38.43772022]
[1770228787096,9.9201,90.907,90.839,38.43772022]
[1770228787597,9.9214,90.896,90.816,38.43772022]
[1770228787996,45.22063582,90.93,90.816,38.43772022]
[1770228788293,37.66015274,90.906,90.816,38.43772022]
[1770228788999,9.922,90.89,90.828,9.9287]
[1770228789198,37.66015274,90.906,90.828,9.9287]
[1770228789498,37.66015274,90.906,90.816,38.43772022]
[1770228790099,37.66015274,90.944,90.841,38.43772022]
[1770228790498,9.9163,90.942,90.881,9.9229]
[1770228790894,37.66015274,90.968,90.882,38.43772022]
[1770228791700,37.66015274,90.968,90.904,9.9203]
[1770228792104,9.9136,90.967,90.904,9.9203]
[1770228792402,37.66015274,90.968,90.904,9.9203]
[1770228792700,37.66015274,90.999,90.905,38.43772022]
[1770228793002,37.66015274,90.999,90.907,9.92]
[1770228793191,37.66015274,90.999,90.88,7.56048308]
[1770228793192,37.66015274,90.976,90.877,38.43772022]
[1770228793499,37.72960233,90.961,90.877,38.43772022]
[1770228793694,37.66015274,90.961,90.877,38.43772022]
[1770228794100,37.66015274,90.959,90.853,38.43772022]
[1770228794302,9.918,90.926,90.859,9.9252]
[1770228794597,37.66015274,90.937,90.825,38.43772022]
[1770228794900,37.66015274,90.919,90.836,48.36552022]
[1770228795200,37.66015274,90.919,90.836,38.43772022]
[1770228795402,37.66015274,90.919,90.813,38.43772022]
[1770228795702,9.9217,90.892,90.822,9.9293]
[1770228795903,37.66015274,90.919,90.813,38.43772022]
[1770228796501,9.9216,90.894,90.826,9.9289]
[1770228796799,37.66015274,90.919,90.831,38.43772022]
[1770228796996,9.923,90.881,90.815,9.93]
[1770228797194,37.66015274,90.919,90.816,38.43772022]
[1770228797594,37.66015274,90.943,90.84,38.43772022]
[1770228797799,37.66015274,90.943,90.851,38.43772022]
[1770228798102,37.66015274,90.943,90.867,38.43772022]
[1770228798103,9.9162,90.943,90.867,38.43772022]
[1770228798298,37.66015274,90.979,90.871,38.43772022]
[1770228798603,37.66015274,90.956,90.871,38.43772022]
[1770228799097,9.9141,90.962,90.887,9.9222]
[1770228799294,9.9141,90.962,90.831,154.4411]
[1770228799295,37.66015274,90.98,90.888,38.43772022]
[1770228799697,9.915,90.954,90.888,38.43772022]
[1770228801202,9.9161,90.943,90.864,48.36242022]
[1770228801508,37.66015274,90.954,90.864,38.43772022]
[1770228801806,37.66015274,90.949,90.841,38.43772022]
[1770228802611,9.9185,90.922,90.856,9.9256]
[1770228802799,37.66015274,90.949,90.841,38.43772022]
[1770228803205,37.66015274,90.949,90.843,38.43772022]
[1770228803509,174.0406,90.966,90.763,154.5572]
[1770228803510,37.66015274,90.919,90.811,38.43772022]
[1770228804009,37.7727054,90.899,90.811,38.43772022]
[1770228804508,37.7727054,90.899,90.787,39.70684149]
[1770228804709,9.9257,90.856,90.79,9.9328]
[1770228805009,37.7727054,90.899,90.791,39.70684149]
[1770228805309,37.7727054,90.899,90.793,39.70684149]
[1770228806509,37.7727054,90.879,90.773,39.70684149]
[1770228807100,9.9264,90.85,90.784,49.64024149]
[1770228807301,37.7727054,90.879,90.784,39.70684149]
[1770228807809,7.55668774,90.88,90.784,39.70684149]
[1770228807810,37.7727054,90.854,90.784,39.70684149]
[1770228808210,37.7727054,90.939,90.784,39.70684149]
[1770228808410,37.7727054,90.939,90.76,7.55668774]
[1770228808411,37.7727054,90.939,90.844,39.70684149]
[1770228808712,37.7727054,90.939,90.811,39.70684149]
[1770228809011,37.7727054,90.897,90.788,39.70684149]
[1770228809310,9.9227,90.884,90.81,9.9306]
[1770228809711,37.7727054,90.897,90.811,39.70684149]
[1770228810208,37.7727054,90.924,90.811,39.70684149]
[1770228810408,37.7727054,90.924,90.821,39.70684149]
[1770228810910,37.7727054,90.924,90.824,39.70684149]
[1770228811309,9.9209,90.9,90.833,9.9281]
[1770228811613,37.7727054,90.902,90.824,39.70684149]
[1770228812309,37.7727054,90.902,90.799,39.70684149]
[1770228812511,7.55668774,90.91,90.799,39.70684149]
[1770228812512,37.7727054,90.889,90.799,39.70684149]
[1770228812709,37.7727054,90.889,90.771,39.70684149]
[1770228812908,37.7727054,90.869,90.771,39.70684149]
[1770228813210,9.9252,90.861,90.771,39.70684149]
[1770228813611,37.7727054,90.869,90.771,39.70684149]
[1770228814114,9.9285,90.83,90.757,9.9364]
[1770228815108,9.9297,90.819,90.753,39.70684149]
[1770228815309,37.7727054,90.818,90.729,39.70684149]
[1770228815809,9.9304,90.813,90.729,39.70684149]
[1770228816513,37.7727054,90.8,90.729,39.70684149]
[1770228817015,37.7727054,90.823,90.729,39.70684149]
[1770228817608,9.932,90.798,90.729,39.70684149]
[1770228817813,37.7727054,90.819,90.691,39.70684149]
[1770228818302,9.9344,90.776,90.703,39.70684149]
[1770228818705,37.7727054,90.787,90.703,39.70684149]
[1770228818918,9.9335,90.785,90.706,39.70684149]
[1770228819407,9.9358,90.764,90.706,39.70684149]
[1770228819617,37.7727054,90.787,90.706,39.70684149]
[1770228820114,9.9335,90.784,90.706,39.70684149]
[1770228820309,37.7727054,90.787,90.706,39.70684149]
[1770228820714,9.9348,90.773,90.706,39.70684149]
[1770228821009,37.7727054,90.787,90.706,39.70684149]
[1770228821716,9.9337,90.783,90.706,39.70684149]
[1770228822311,9.935,90.771,90.706,39.70684149]
[1770228822914,37.7727054,90.787,90.706,39.70684149]
[1770228823715,9.9352,90.769,90.706,39.70684149]
[1770228826015,9.9336,90.783,90.709,39.70684149]
[1770228826218,37.7727054,90.787,90.709,39.70684149]
[1770228826517,9.9332,90.787,90.709,39.70684149]
[1770228826719,37.7727054,90.796,90.687,39.70684149]
[1770228827120,37.7727054,90.796,90.69,39.70684149]
[1770228827323,37.7727054,90.796,90.701,39.70684149]
[1770228827821,37.7727054,90.839,90.733,39.70684149]
[1770228828020,37.7727054,90.829,90.733,39.70684149]
[1770228828222,9.9338,90.782,90.733,39.70684149]
[1770228828422,37.7727054,90.806,90.701,39.70684149]
[1770228828821,37.7727054,90.78,90.701,39.70684149]
[1770228829721,9.936,90.761,90.701,39.70684149]
[1770228830128,9.9372,90.751,90.701,39.70684149]
[1770228830322,37.7727054,90.78,90.701,39.70684149]
[1770228830520,37.7727054,90.78,90.661,39.70684149]
[1770228830721,9.9381,90.743,90.682,9.9446]
[1770228830928,9.9381,90.743,90.682,49.65144149]
[1770228831223,9.9381,90.743,90.683,39.70684149]
[1770228831425,9.9368,90.755,90.686,39.70684149]
[1770228831627,37.7727054,90.78,90.686,39.70684149]
[1770228832130,37.7727054,90.809,90.717,39.70684149]
[1770228832528,37.7727054,90.787,90.693,39.70684149]
[1770228833836,9.9337,90.782,90.714,37.35761119]
[1770228834130,37.7727054,90.787,90.714,37.35761119]
[1770228834929,9.9348,90.773,90.714,37.35761119]
[1770228835136,37.7727054,90.787,90.714,37.35761119]
[1770228836542,37.7727054,90.787,90.694,37.35761119]
[1770228836837,9.9381,90.743,90.694,37.35761119]
[1770228837430,9.9378,90.745,90.694,37.35761119]
[1770228837637,37.74894326,90.765,90.694,37.35761119]
[1770228838136,9.9394,90.731,90.694,37.35761119]
[1770228838736,9.9383,90.741,90.694,37.35761119]
[1770228840140,37.74894326,90.765,90.694,37.35761119]
[1770228841136,38.90241981,90.786,90.694,37.35761119]
[1770228841342,38.90241981,90.786,90.701,38.83039535]
[1770228841541,244.96088849,90.873,90.701,38.83039535]
[1770228841542,9.937,90.752,90.701,38.83039535]
[1770228841739,38.90241981,90.799,90.701,38.83039535]
[1770228841938,9.9364,90.758,90.701,38.83039535]
[1770228842139,38.90241981,90.78,90.701,38.83039535]
[1770228842338,38.90241981,90.801,90.711,38.83039535]
[1770228843232,7.55668774,90.8,90.711,38.83039535]
[1770228843437,38.90241981,90.799,90.711,38.83039535]
[1770228843738,9.9377,90.747,90.711,38.83039535]
[1770228844040,7.55668774,90.8,90.506,464.9879]
[1770228844041,38.90241981,90.739,90.641,38.83039535]
[1770228844234,38.90241981,90.719,90.641,38.83039535]
[1770228844436,38.90241981,90.719,90.541,154.9353]
[1770228844437,38.90241981,90.719,90.618,38.83039535]
[1770228844635,38.90241981,90.679,90.594,38.83039535]
[1770228845440,38.90241981,90.708,90.595,38.83039535]
[1770228845738,38.90241981,90.731,90.61,7.55668774]
[1770228845934,38.90241981,90.731,90.631,38.83039535]
[1770228846139,38.90241981,90.731,90.636,38.83039535]
[1770228846644,38.90241981,90.731,90.582,154.8664]
[1770228846645,38.90241981,90.731,90.641,38.83039535]
[1770228847341,38.90241981,90.731,90.619,38.83039535]
[1770228847643,38.90241981,90.719,90.619,38.83039535]
[1770228848040,38.90241981,90.699,90.597,38.83039535]
[1770228848345,9.9462,90.669,90.597,38.83039535]
[1770228848540,38.90241981,90.699,90.597,38.83039535]
[1770228848849,9.9451,90.678,90.613,38.83039535]
[1770228849142,38.90241981,90.699,90.613,38.83039535]
[1770228849540,38.90241981,90.679,90.586,38.83039535]
[1770228849742,38.90241981,90.701,90.591,38.83039535]
[1770228850144,38.90241981,90.701,90.599,38.83039535]
[1770228850340,38.90241981,90.723,90.611,38.83039535]
[1770228850739,38.90241981,90.709,90.611,38.83039535]
[1770228851244,9.9443,90.686,90.614,38.83039535]
[1770228851546,38.90241981,90.709,90.614,38.83039535]
[1770228851747,9.9458,90.673,90.614,38.83039535]
[1770228852246,9.9468,90.663,90.614,38.83039535]
[1770228852447,38.90241981,90.688,90.614,38.83039535]
[1770228852843,38.90241981,90.712,90.614,38.83039535]
[1770228853041,38.90241981,90.735,90.614,38.83039535]
[1770228853247,9.9411,90.715,90.64,38.83039535]
[1770228853445,38.90241981,90.735,90.64,38.83039535]
[1770228853747,9.941,90.717,90.651,38.83039535]
[1770228854040,38.90241981,90.76,90.651,38.83039535]
[1770228854550,38.90241981,90.76,90.662,38.83039535]
[1770228854946,154.5391,90.774,90.662,38.83039535]
[1770228854947,38.90241981,90.739,90.662,38.83039535]
[1770228855244,19.8677,90.782,90.662,38.83039535]
[1770228855245,38.90241981,90.768,90.662,38.83039535]
[1770228855439,9.938,90.743,90.676,9.9452]
[1770228855645,38.90241981,90.768,90.677,38.83039535]
[1770228856039,38.90241981,90.789,90.682,38.83039535]
[1770228856440,38.90241981,90.829,90.701,38.83039535]
[1770228856643,9.9329,90.79,90.721,38.83039535]
[1770228856938,38.90241981,90.808,90.721,38.83039535]
[1770228857140,38.90241981,90.829,90.721,38.83039535]
[1770228857548,38.90241981,90.827,90.723,38.83039535]
[1770228858149,38.90241981,90.827,90.701,38.83039535]
[1770228858349,38.90241981,90.799,90.701,38.83039535]
[1770228858947,9.9307,90.81,90.711,38.83039535]
[1770228859153,38.90241981,90.819,90.711,38.83039535]
[1770228859449,38.90241981,90.841,90.741,38.83039535]
[1770228860148,38.90241981,90.839,90.747,38.83039535]
[1770228860448,38.90241981,90.861,90.751,38.83039535]
[1770228860650,38.90241981,90.856,90.762,38.83039535]
[1770228860950,38.90241981,90.849,90.762,38.83039535]
[1770228861146,38.90241981,90.849,90.711,38.83039535]
[1770228861345,38.90241981,90.812,90.723,38.83039535]
[1770228861652,38.90241981,90.789,90.699,38.83039535]
[1770228861848,38.90241981,90.789,90.714,48.77159535]
[1770228862046,38.90241981,90.789,90.69,7.55668774]
[1770228862047,38.90241981,90.789,90.715,38.83039535]
[1770228862745,38.90241981,90.817,90.715,38.83039535]
[1770228862951,9.931,90.808,90.728,9.9395]
[1770228863141,38.90241981,90.817,90.675,154.707]
[1770228863142,38.90241981,90.817,90.729,38.83039535]
[1770228863552,38.90241981,90.814,90.729,38.83039535]
[1770228864053,47.73326529,90.813,90.732,9.9391]
[1770228864249,37.80286529,90.812,90.729,38.83039535]
[1770228864449,37.80286529,90.799,90.691,38.27591473]
[1770228864654,9.9359,90.762,90.691,38.27591473]
[1770228864853,37.80286529,90.779,90.691,38.27591473]
[1770228865154,9.9359,90.763,90.691,38.27591473]
[1770228865354,37.80286529,90.762,90.691,38.27591473]
[1770228865949,37.80286529,90.799,90.691,38.27591473]
[1770228866456,9.9334,90.786,90.693,38.27591473]
[1770228866848,37.80286529,90.799,90.693,38.27591473]
[1770228867050,9.9332,90.787,90.695,38.27591473]
[1770228867250,37.80286529,90.799,90.695,38.27591473]
[1770228868151,37.80286529,90.821,90.711,38.27591473]
[1770228868757,7.58220244,90.84,90.731,38.27591473]
[1770228868957,37.80286529,90.843,90.751,38.27591473]
[1770228869154,9.9263,90.851,90.77,9.9349]
[1770228869348,37.80286529,90.859,90.771,38.27591473]
[1770228869652,37.80286529,90.833,90.748,38.27591473]
[1770228870155,9.9302,90.815,90.748,38.27591473]
[1770228870356,7.58220244,90.82,90.717,38.27591473]
[1770228870557,37.80286529,90.819,90.717,38.27591473]
[1770228870856,37.80286529,90.819,90.721,38.27591473]
[1770228871256,9.9316,90.802,90.725,38.27591473]
[1770228872155,9.9328,90.791,90.725,38.27591473]
[1770228872461,37.80286529,90.799,90.701,38.27591473]
[1770228872656,9.9364,90.758,90.701,38.27591473]
[1770228873263,9.9375,90.748,90.701,38.27591473]
[1770228873562,37.80286529,90.778,90.701,38.27591473]
[1770228874558,37.80286529,90.778,90.678,38.27591473]
[1770228875465,37.80286529,90.755,90.678,38.27591473]
[1770228875658,37.80286529,90.755,90.656,38.27591473]
[1770228875859,37.80286529,90.755,90.659,38.27591473]
[1770228876662,9.9419,90.708,90.659,38.27591473]
[1770228876960,37.80286529,90.73,90.659,38.27591473]
[1770228877164,37.80286529,90.719,90.621,38.27591473]
[1770228877566,37.80286529,90.69,90.621,38.27591473]
[1770228878770,9.9443,90.686,90.621,38.27591473]
[1770228879059,37.80286529,90.713,90.621,38.27591473]
[1770228879259,37.80286529,90.737,90.635,38.27591473]
[1770228880165,9.9418,90.709,90.647,9.9485]
[1770228880759,37.80286529,90.782,90.68,7.58220244]
[1770228880965,37.80286529,90.805,90.701,38.27591473]
[1770228881167,9.9331,90.789,90.704,38.27591473]
[1770228881556,37.80286529,90.805,90.704,38.27591473]
[1770228881765,37.80286529,90.769,90.68,38.27591473]
[1770228882461,37.80286529,90.769,90.655,38.27591473]
[1770228882861,37.80286529,90.769,90.64,7.58220244]
[1770228882862,9.9378,90.746,90.658,38.27591473]
[1770228883166,37.80286529,90.769,90.661,38.27591473]
[1770228883369,37.80286529,90.769,90.684,38.27591473]
[1770228883962,9.9369,90.754,90.684,38.27591473]
[1770228884157,37.80286529,90.769,90.684,38.27591473]
[1770228884562,9.9397,90.728,90.662,38.27591473]
[1770228885168,9.9384,90.74,90.662,38.27591473]
[1770228885467,37.80286529,90.746,90.662,38.27591473]
[1770228885667,9.9398,90.727,90.662,38.27591473]
[1770228885870,37.80286529,90.746,90.662,38.27591473]
[1770228886063,37.80286529,90.746,90.638,38.27591473]
[1770228886367,7.58220244,90.75,90.638,38.27591473]
[1770228886566,37.80286529,90.755,90.641,38.27591473]
[1770228886966,9.9382,90.742,90.662,38.27591473]
[1770228887165,37.80286529,90.755,90.662,38.27591473]
[1770228887368,9.9354,90.767,90.662,38.27591473]
[1770228887671,37.80286529,90.778,90.681,38.27591473]
[1770228887870,37.80286529,90.802,90.681,38.27591473]
[1770228888170,9.9337,90.782,90.681,38.27591473]
[1770228888666,9.9363,90.759,90.685,48.22021473]
[1770228888870,37.80286529,90.776,90.686,38.27591473]
[1770228889370,9.9361,90.761,90.686,38.27591473]
[1770228889568,37.80286529,90.776,90.686,38.27591473]
[1770228890670,37.80286529,90.776,90.664,38.27591473]
[1770228891472,9.9385,90.739,90.667,38.27591473]
[1770228891674,37.80286529,90.738,90.667,38.27591473]
[1770228892569,37.80286529,90.738,90.578,19.912]
[1770228892570,37.80286529,90.718,90.62,38.27591473]
[1770228893068,37.80286529,90.742,90.623,38.27591473]
[1770228893375,37.80286529,90.742,90.631,38.27591473]
[1770228893678,9.9399,90.726,90.638,38.63857628]
[1770228894074,39.50331183,90.739,90.638,38.63857628]
[1770228894274,9.9425,90.702,90.638,38.63857628]
[1770228894773,39.50331183,90.715,90.638,38.63857628]
[1770228895072,9.9437,90.692,90.638,38.63857628]
[1770228895373,9.9437,90.692,90.614,38.63857628]
[1770228895672,9.9422,90.705,90.625,9.9509]
[1770228895867,9.9422,90.705,90.626,38.63857628]
[1770228896074,39.50331183,90.704,90.626,38.63857628]
[1770228896269,39.50331183,90.684,90.578,38.63857628]
[1770228896474,39.50331183,90.684,90.59,38.63857628]
[1770228896974,39.50331183,90.707,90.616,38.63857628]
[1770228897874,9.9445,90.684,90.616,38.63857628]
[1770228899175,9.9431,90.697,90.618,39.27248812]
[1770228899374,38.68568729,90.697,90.594,39.27248812]
[1770228900076,9.9461,90.67,90.601,39.27248812]
[1770228900576,38.68568729,90.675,90.601,39.27248812]
[1770228900775,154.6123,90.731,90.601,39.27248812]
[1770228900776,38.68568729,90.701,90.601,39.27248812]
[1770228900974,9.9435,90.694,90.63,39.27248812]
[1770228901275,38.68568729,90.726,90.63,39.27248812]
[1770228901578,9.9453,90.677,90.63,39.27248812]
[1770228901871,154.5963,90.741,90.63,39.27248812]
[1770228901872,38.68568729,90.729,90.63,39.27248812]
[1770228902076,38.68568729,90.729,90.63,46.85469056]
[1770228902375,9.9414,90.713,90.63,46.85469056]
[1770228902677,38.68568729,90.759,90.63,46.85469056]
[1770228902874,9.9387,90.738,90.663,39.27248812]
[1770228903273,9.9387,90.738,90.667,39.27248812]
[1770228904579,9.9387,90.738,90.669,39.27248812]
[1770228905077,9.9373,90.75,90.669,39.27248812]
[1770228905272,38.68568729,90.811,90.69,7.58220244]
[1770228905470,38.68568729,90.811,90.711,39.27248812]
[1770228905676,38.68568729,90.837,90.731,39.27248812]
[1770228905974,38.68568729,90.863,90.741,39.27248812]
[1770228906278,38.68568729,90.863,90.761,39.27248812]
[1770228906470,9.9282,90.833,90.761,39.27248812]
[1770228906670,38.68568729,90.829,90.732,39.27248812]
[1770228906871,38.68568729,90.854,90.741,39.27248812]
[1770228907176,38.68568729,90.836,90.741,39.27248812]
[1770228907378,38.68568729,90.86,90.757,39.27248812]
[1770228907680,46.26788973,90.84,90.733,39.27248812]
[1770228907985,38.68568729,90.819,90.709,39.27248812]
[1770228908182,38.68568729,90.79,90.686,39.27248812]
[1770228908478,38.68568729,90.779,90.651,39.27248812]
[1770228908681,38.68568729,90.745,90.651,39.27248812]
[1770228908877,38.68568729,90.739,90.651,39.27248812]
[1770228909176,7.58220244,90.74,90.623,39.27248812]
[1770228909177,38.68568729,90.714,90.623,39.27248812]
[1770228909679,38.68568729,90.714,90.623,49.22358812]
[1770228909981,38.68568729,90.714,90.624,39.27248812]
[1770228910480,38.68568729,90.714,90.628,39.27248812]
[1770228910677,154.5467,90.77,90.628,39.27248812]
[1770228910678,38.68568729,90.71,90.628,39.27248812]
[1770228910872,38.68568729,90.71,90.604,39.27248812]
[1770228911274,38.68568729,90.71,90.622,39.27248812]
[1770228911878,38.68568729,90.71,90.625,39.27248812]
[1770228912484,38.68568729,90.699,90.599,39.27248812]
[1770228912980,38.68568729,90.719,90.617,39.27248812]
[1770228913580,46.26788973,90.7,90.593,39.27248812]
[1770228914182,9.9429,90.699,90.594,9.9543]
[1770228914388,38.68568729,90.7,90.593,39.27248812]
[1770228914592,38.68568729,90.679,90.568,39.27248812]
[1770228914886,9.9462,90.669,90.568,39.27248812]
[1770228915088,38.68568729,90.668,90.568,39.27248812]
[1770228915586,38.68568729,90.659,90.543,39.27248812]
[1770228915789,38.68568729,90.639,90.543,39.27248812]
[1770228916882,38.68568729,90.639,90.551,39.27248812]
[1770228917279,9.9471,90.661,90.551,39.27248812]
[1770228917488,9.9487,90.646,90.552,39.27248812]
[1770228917687,38.68568729,90.663,90.552,39.27248812]
[1770228918189,38.68568729,90.659,90.552,39.27248812]
[1770228918591,9.9476,90.656,90.568,39.27248812]
[1770228918889,38.68568729,90.659,90.568,39.27248812]
[1770228919089,9.9459,90.672,90.586,39.27248812]
[1770228919482,38.68568729,90.672,90.586,39.27248812]
[1770228919685,9.9472,90.659,90.586,39.27248812]
[1770228920181,9.9459,90.671,90.586,39.27248812]
[1770228921188,9.9471,90.66,90.586,39.27248812]
[1770228921389,46.26788973,90.67,90.586,39.27248812]
[1770228921785,38.68568729,90.67,90.586,39.27248812]
[1770228921990,38.68568729,90.693,90.586,39.27248812]
[1770228922290,9.9454,90.676,90.587,9.9551]
[1770228922594,38.68568729,90.693,90.588,39.27248812]
[1770228923095,46.26788973,90.69,90.603,39.27248812]
[1770228923290,38.68568729,90.741,90.603,39.27248812]
[1770228923490,7.58220244,90.73,90.603,39.27248812]
[1770228923692,36.75752406,90.704,90.621,39.27248812]
[1770228924096,36.75752406,90.704,90.581,38.8024099]
[1770228924296,36.75752406,90.685,90.594,38.8024099]
[1770228924893,9.9459,90.671,90.594,38.8024099]
[1770228925189,36.75752406,90.67,90.594,38.8024099]
[1770228925600,36.75752406,90.668,90.594,38.8024099]
[1770228926294,36.75752406,90.668,90.596,48.7565099]
[1770228926693,36.75752406,90.668,90.583,9.9554]
[1770228927199,36.75752406,90.668,90.573,38.8024099]
[1770228927596,36.75752406,90.656,90.573,38.8024099]
[1770228928195,36.75752406,90.632,90.531,38.8024099]
[1770228928703,36.75752406,90.63,90.531,38.8024099]
[1770228929700,9.9524,90.612,90.531,48.7636099]
[1770228930001,44.35836917,90.63,90.531,38.8024099]
[1770228930198,9.9536,90.602,90.531,38.8024099]
[1770228930503,36.75752406,90.608,90.509,38.8024099]
[1770228931202,36.75752406,90.608,90.51,38.8024099]
[1770228931498,9.9534,90.603,90.524,9.962]
[1770228931703,36.75752406,90.608,90.525,38.8024099]
[1770228931901,36.75752406,90.608,90.502,38.8024099]
[1770228932198,9.9558,90.581,90.504,38.8024099]
[1770228932398,36.75752406,90.608,90.504,38.8024099]
[1770228932902,9.956,90.58,90.507,38.8024099]
[1770228933305,36.75752406,90.586,90.507,38.8024099]
[1770228933702,9.956,90.579,90.507,38.8024099]
[1770228934005,36.75752406,90.643,90.541,38.8024099]
[1770228934199,36.75752406,90.664,90.57,38.8024099]
[1770228934604,1.92098566,90.665,90.57,38.8024099]
[1770228934605,9.9509,90.626,90.57,38.8024099]
[1770228934806,36.75752406,90.637,90.545,38.8024099]
[1770228935201,9.9537,90.6,90.545,38.8024099]
[1770228935405,36.75752406,90.637,90.545,38.8024099]
[1770228935605,36.75752406,90.629,90.545,38.8024099]
[1770228935906,36.75752406,90.629,90.521,38.8024099]
[1770228936302,19.8977,90.645,90.497,38.8024099]
[1770228936303,36.75752406,90.577,90.497,38.8024099]
[1770228937107,36.75752406,90.577,90.5,38.8024099]
[1770228937608,9.9579,90.562,90.5,38.8024099]
[1770228938403,36.75752406,90.602,90.5,38.8024099]
[1770228938611,36.75752406,90.599,90.5,38.8024099]
[1770228939113,9.9573,90.567,90.5,38.8024099]
[1770228939308,36.75752406,90.599,90.5,38.8024099]
[1770228939508,9.9581,90.561,90.5,38.8024099]
[1770228940810,36.75752406,90.576,90.512,9.9633]
[1770228941002,36.75752406,90.599,90.513,38.8024099]
[1770228941200,9.9571,90.569,90.513,38.8024099]
[1770228941403,36.75752406,90.599,90.513,38.8024099]
[1770228941803,9.9549,90.589,90.513,38.8024099]
[1770228942002,36.75752406,90.588,90.501,9.9645]
[1770228942210,36.75752406,90.588,90.502,38.8024099]
[1770228942808,9.9571,90.569,90.502,38.8024099]
[1770228943012,36.75752406,90.61,90.502,38.8024099]
[1770228943212,36.75752406,90.61,90.524,38.8024099]
[1770228943507,9.9538,90.6,90.524,38.8024099]
[1770228943811,9.9538,90.6,90.546,9.9596]
[1770228944012,46.71022406,90.61,90.524,38.8024099]
[1770228944312,36.75752406,90.632,90.541,38.8024099]
[1770228944610,36.75752406,90.632,90.554,38.8024099]
[1770228944808,9.9516,90.62,90.554,38.8024099]
[1770228945113,36.75752406,90.632,90.554,38.8024099]
[1770228945810,7.60084511,90.62,90.533,38.8024099]
[1770228946116,9.9539,90.599,90.533,38.8024099]
[1770228946316,36.75752406,90.619,90.535,38.8024099]
[1770228946507,36.75752406,90.619,90.491,38.8024099]
[1770228946812,36.75752406,90.585,90.493,38.8024099]
[1770228947114,36.75752406,90.579,90.493,38.8024099]
[1770228947911,36.75752406,90.602,90.518,38.8024099]
[1770228948115,36.75752406,90.639,90.521,38.8024099]
[1770228948518,36.75752406,90.624,90.535,38.8024099]
[1770228949014,36.75752406,90.624,90.56,38.8024099]
[1770228949207,36.75752406,90.649,90.56,38.8024099]
[1770228949605,36.75752406,90.647,90.56,38.8024099]
[1770228949807,154.6604,90.703,90.56,38.8024099]
[1770228949808,36.75752406,90.679,90.56,46.40325501]
[1770228950006,36.75752406,90.679,90.527,154.9591]
[1770228950007,36.75752406,90.679,90.581,38.8024099]
[1770228950212,9.9457,90.673,90.588,9.955]
[1770228950414,36.75752406,90.679,90.581,38.8024099]
[1770228950609,36.75752406,90.679,90.56,38.8024099]